bitfinex/quotes_SOLUSD_20240530
["timestamp","ask_amount","ask_price","bid_price","bid_amount"]
[1717099206592,6.77,168.33,168.23,78.09003334]
[1717099206593,2.1982,168.32,168.27,2.1988]
[1717099206802,8.9683,168.31,168.25,2.199]
[1717099206984,8.9684,168.3,168.24,6.77]
[1717099207278,60.0,168.51,168.19,642.8992]
[1717099207279,2.1987,168.28,168.19,449.6992]
[1717099207463,2.1984,168.3,168.24,2.1991]
[1717099207660,6.427,168.33,168.26,6.77]
[1717099207913,6.77,168.27,168.22,2.1994]
[1717099208099,8.9688,168.27,168.22,2.1994]
[1717099208307,2.1985,168.3,168.22,60.0]
[1717099208508,2.1983,168.31,168.25,2.199]
[1717099208706,2.1985,168.3,168.24,2.1992]
[1717099208899,12.60059153,168.33,168.22,77.6]
[1717099209104,2.1983,168.31,168.22,17.6]
[1717099209304,12.60059153,168.33,168.23,45.0]
[1717099209499,12.60059153,168.33,168.25,2.199]
[1717099209912,2.1983,168.31,168.25,2.199]
[1717099210510,2.1984,168.3,168.25,2.199]
[1717099210813,8.5421,168.3,168.24,2.1992]
[1717099211012,6.3437,168.3,168.24,2.1992]
[1717099211227,6.3437,168.3,168.19,380.9]
[1717099211406,2.1986,168.29,168.2,60.0]
[1717099211611,8.5421,168.3,168.24,2.1991]
[1717099211817,2.1986,168.29,168.23,2.1993]
[1717099212035,6.3437,168.3,168.2,2.1996]
[1717099212338,2.1986,168.29,168.22,2.1993]
[1717099212515,2.1986,168.29,168.2,60.0]
[1717099212720,2.1987,168.28,168.22,2.1994]
[1717099213433,6.3437,168.3,168.21,45.0]
[1717099213615,2.1986,168.29,168.23,2.1993]
[1717099214022,8.5421,168.3,168.24,2.1991]
[1717099214218,8.51175,168.3,168.24,2.1991]
[1717099214740,8.51175,168.3,168.22,17.6]
[1717099214741,6.31325,168.3,168.22,17.6]
[1717099214940,6.31325,168.3,168.09,6.546]
[1717099214941,15.2714,168.26,168.09,6.546]
[1717099215117,15.2714,168.26,168.13,60.0]
[1717099215546,2.1992,168.24,168.15,2.2003]
[1717099215850,2.1989,168.27,168.17,2.2]
[1717099216021,2.1989,168.27,168.18,2.1999]
[1717099216219,2.1986,168.29,168.19,77.6]
[1717099216420,2.1987,168.28,168.19,77.6]
[1717099216648,6.31325,168.3,168.17,66.3915]
[1717099216825,8.51175,168.3,168.2,2.1997]
[1717099217154,2.1986,168.29,168.2,19.7997]
[1717099217320,6.31325,168.3,168.21,47.1995]
[1717099217519,6.31325,168.3,168.22,2.1994]
[1717099218135,6.31325,168.3,168.23,2.1993]
[1717099218335,2.1982,168.32,168.24,2.1992]
[1717099218544,2.1982,168.32,168.24,47.1992]
[1717099219036,28.21383137,168.34,168.24,47.1992]
[1717099219238,2.1982,168.32,168.24,47.1992]
[1717099219522,22.0455,168.34,168.25,17.6]
[1717099219717,6.4569,168.34,168.26,47.1989]
[1717099220034,6.4569,168.34,168.27,17.6]
[1717099220230,6.5264,168.39,168.28,122.6]
[1717099220430,15.738,168.42,168.34,2.1978]
[1717099220632,6.5659,168.43,168.34,2.1978]
[1717099220845,6.5659,168.43,168.34,47.1978]
[1717099221049,6.5659,168.43,168.34,45.0]
[1717099221231,6.5659,168.43,168.34,47.1979]
[1717099221427,2.197,168.42,168.34,47.1979]
[1717099221846,2.1974,168.38,168.34,45.0]
[1717099222034,22.413,168.4,168.34,45.0]
[1717099222238,6.5713,168.35,168.34,45.0]
[1717099222643,6.5713,168.35,168.27,2.1988]
[1717099223751,6.5713,168.35,168.28,2.1986]
[1717099224448,20.2362,168.4,168.3,2.1984]
[1717099224449,2.1975,168.37,168.3,2.1984]
[1717099224833,6.0776,168.39,168.29,122.6]
[1717099224834,8.2749,168.39,168.29,122.6]
[1717099225034,8.2749,168.39,168.31,2.1983]
[1717099225248,8.2749,168.39,168.29,47.1984]
[1717099225249,6.0776,168.39,168.29,47.1984]
[1717099225437,2.1975,168.37,168.3,2.1984]
[1717099225635,2.1974,168.38,168.3,2.1984]
[1717099225831,2.1974,168.38,168.31,2.1982]
[1717099228157,6.0776,168.39,168.28,45.0]
[1717099228454,6.0776,168.39,168.27,2.1988]
[1717099228656,2.1979,168.35,168.27,2.1988]
[1717099228861,2.1979,168.34,168.27,2.1988]
[1717099229071,2.1978,168.35,168.28,2.1987]
[1717099230260,2.1979,168.34,168.27,45.0]
[1717099230468,2.198,168.33,168.27,45.0]
[1717099230830,2.198,168.33,168.27,47.1988]
[1717099231031,6.5207,168.31,168.27,45.0]
[1717099231559,6.5207,168.31,168.27,47.1988]
[1717099232127,6.5207,168.31,168.27,45.0]
[1717099232743,5.1230691,168.31,168.27,45.0]
[1717099233255,6.16928353,168.35,168.28,77.6]
[1717099233456,4.3946,168.39,168.29,45.0]
[1717099233637,6.17276553,168.35,168.28,2.1986]
[1717099233840,6.17276553,168.35,168.27,47.1988]
[1717099234040,2.198,168.34,168.27,47.1988]
[1717099234236,2.198,168.33,168.27,47.1988]
[1717099234437,4.3962,168.33,168.22,2.1994]
[1717099234743,2.1989,168.27,168.21,2.1996]
[1717099235261,2.199,168.26,168.2,2.1997]
[1717099236956,8.439,168.27,168.21,2.1996]
[1717099237160,6.2402,168.27,168.19,17.6]
[1717099237337,6.2402,168.27,168.22,2.1994]
[1717099238558,8.439,168.27,168.21,2.1996]
[1717099239365,8.439,168.27,168.18,22.0]
[1717099239366,8.439,168.27,168.22,2.1994]
[1717099239563,6.1854,168.26,168.18,22.0]
[1717099239763,2.1989,168.26,168.21,2.1995]
[1717099240062,8.5846,168.27,168.22,2.1994]
[1717099240261,8.5846,168.27,168.18,22.0]
[1717099240568,8.5846,168.27,168.21,2.1996]
[1717099240769,6.3858,168.27,168.2,2.1997]
[1717099241061,6.3858,168.27,168.16,2.2002]
[1717099241273,2.1995,168.22,168.16,2.2002]
[1717099241446,10.9948,168.26,168.17,2.2001]
[1717099241447,2.1993,168.23,168.17,2.2001]
[1717099241843,2.1992,168.24,168.18,2.2]
[1717099242139,6.0914,168.23,168.16,2.2002]
[1717099242343,2.1995,168.22,168.16,2.2002]
[1717099242576,6.3019,168.2,168.15,2.2003]
[1717099243052,6.3019,168.19,168.15,2.2004]
[1717099243467,6.3019,168.19,168.16,2.2002]
[1717099244170,6.3019,168.19,168.14,2.2005]
[1717099244670,8.5018,168.19,168.13,47.2006]
[1717099245576,2.2001,168.17,168.08,398.5]
[1717099245739,2.2001,168.17,168.11,2.2008]
[1717099245942,6.0661,168.19,168.12,2.2007]
[1717099246362,2.2003,168.16,168.1,2.201]
[1717099246968,2.2001,168.17,168.11,2.2009]
[1717099247165,6.497,168.2,168.1,2.201]
[1717099247166,2.2003,168.16,168.1,2.201]
[1717099247354,6.497,168.2,168.06,66.5733]
[1717099247355,4.3998,168.19,168.06,66.5733]
[1717099247555,2.2005,168.15,168.09,2.2011]
[1717099248351,2.2005,168.14,168.09,2.2011]
[1717099248553,6.3866,168.14,168.09,2.2011]
[1717099248775,6.3866,168.14,168.04,2.2018]
[1717099248776,2.2011,168.1,168.04,2.2018]
[1717099248982,2.201,168.1,168.04,2.2018]
[1717099249283,8.3966,168.1,168.05,2.2017]
[1717099249987,2.2012,168.09,168.04,2.2018]
[1717099250189,8.3967,168.1,168.04,2.2018]
[1717099250849,2.2012,168.09,168.04,2.2018]
[1717099251050,6.1956,168.1,168.03,2.5728048]
[1717099251256,2.2012,168.09,168.03,2.5728048]
[1717099251875,2.2012,168.09,168.04,2.2018]
[1717099252478,6.1474,168.11,168.03,0.3709048]
[1717099252660,8.3126,168.06,168.03,0.3709048]
[1717099252969,8.8035,168.12,168.03,0.3709048]
[1717099252970,8.3127,168.05,168.03,0.3709048]
[1717099253172,6.111,168.04,168.03,0.3709048]
[1717099254807,8.3128,168.04,168.03,0.3709048]
[1717099254973,34.72825179,168.04,168.03,0.3709048]
[1717099255292,30.22315179,168.04,168.03,0.3709048]
[1717099255473,34.62685179,168.04,168.03,0.3709048]
[1717099257009,14.55145179,168.04,168.03,0.3709048]
[1717099257221,6.17585179,168.04,168.03,0.3709048]
[1717099257508,8.3731,168.08,168.03,0.3709048]
[1717099257699,14.54884952,168.08,168.03,0.3709048]
[1717099258007,6.17574952,168.08,168.04,2.2017]
[1717099258187,6.1718,168.12,168.03,0.3709048]
[1717099258188,6.1718,168.12,168.03,62.9709048]
[1717099258393,2.201,168.1,168.04,2.2017]
[1717099259272,8.37564786,168.11,168.04,2.2017]
[1717099260189,8.37564786,168.11,168.05,2.2016]
[1717099260686,2.2011,168.1,168.04,2.2018]
[1717099261073,12.8811,168.16,168.04,17.6]
[1717099261286,2.2007,168.13,168.06,2.2015]
[1717099261481,2.2008,168.12,168.06,2.2015]
[1717099261799,6.6004,168.18,168.06,2.2015]
[1717099261800,10.6799,168.19,168.06,77.6]
[1717099261976,2.2002,168.17,168.1,2.201]
[1717099262173,2.2002,168.17,168.11,2.2009]
[1717099262372,12.4583683,168.19,168.13,2.2006]
[1717099262373,8.3780683,168.19,168.13,2.2006]
[1717099262573,15.9614,168.27,168.15,60.0]
[1717099262574,19.7907,168.26,168.15,60.0]
[1717099262776,6.1770449,168.22,168.16,19.8002]
[1717099263003,2.1992,168.25,168.18,2.1999]
[1717099263305,2.1994,168.23,168.17,131.2577]
[1717099263612,2.1992,168.24,168.17,131.2577]
[1717099263780,2.1994,168.23,168.17,51.4576]
[1717099263983,2.1995,168.22,168.17,45.0]
[1717099264196,2.1995,168.22,168.16,45.0]
[1717099264411,2.1998,168.2,168.16,45.0]
[1717099264598,2.1998,168.2,168.12,22.4857]
[1717099264778,2.1996,168.21,168.14,2.2004]
[1717099264977,2.1996,168.21,168.15,2.2004]
[1717099265278,2.1995,168.22,168.16,2.2002]
[1717099265698,2.1995,168.22,168.15,2.2003]
[1717099266101,2.1995,168.22,168.16,2.2002]
[1717099266298,2.1993,168.23,168.16,62.6]
[1717099266609,2.1995,168.22,168.16,62.6]
[1717099266800,2.1993,168.23,168.16,64.8001]
[1717099267110,2.1995,168.22,168.16,64.8001]
[1717099267285,2.1992,168.24,168.17,2.2001]
[1717099267487,2.1992,168.24,168.17,107.2001]
[1717099268100,2.1991,168.25,168.18,2.1999]
[1717099268401,2.1993,168.23,168.18,45.0]
[1717099270426,2.1992,168.24,168.18,47.1999]
[1717099271003,2.1991,168.25,168.19,2.1998]
[1717099271209,2.199,168.26,168.19,2.1998]
[1717099271501,6.17984095,168.3,168.23,77.6]
[1717099271708,2.1982,168.32,168.26,2.1989]
[1717099272292,2.198,168.33,168.27,2.1987]
[1717099272488,17.01720388,168.36,168.26,19.7989]
[1717099272735,2.1982,168.32,168.26,47.1989]
[1717099273025,4.3958,168.35,168.24,45.0]
[1717099273196,4.3958,168.35,168.25,2.199]
[1717099273520,2.1981,168.32,168.26,2.1989]
[1717099273700,2.198,168.34,168.28,2.1986]
[1717099273897,12.62190388,168.36,168.27,77.6]
[1717099274205,2.1976,168.37,168.3,79.7984]
[1717099274408,2.1976,168.37,168.31,47.1983]
[1717099274713,6.1791726,168.4,168.32,60.0]
[1717099274913,6.1791726,168.4,168.31,45.0]
[1717099274914,21.5961,168.46,168.34,60.0]
[1717099275120,2.197,168.41,168.35,45.0]
[1717099275434,38.72718653,168.46,168.35,45.0]
[1717099275626,2.1974,168.38,168.35,45.0]
[1717099276001,2.1973,168.39,168.35,45.0]
[1717099276209,2.1971,168.4,168.34,45.0]
[1717099276402,2.1973,168.39,168.34,45.0]
[1717099277021,2.1974,168.38,168.34,45.0]
[1717099277705,2.1973,168.39,168.34,45.0]
[1717099278289,2.1973,168.39,168.31,75.4635]
[1717099278290,2.1976,168.37,168.3,2.1983]
[1717099278494,38.72718653,168.46,168.3,2.1983]
[1717099279119,2.1977,168.36,168.3,2.1983]
[1717099279819,2.1979,168.34,168.29,45.0]
[1717099280395,6.3529,168.37,168.24,6.0432]
[1717099280624,2.1986,168.29,168.23,2.1993]
[1717099280819,2.1986,168.29,168.2,10.4424]
[1717099280820,2.1989,168.27,168.2,6.0432]
[1717099281314,2.1989,168.27,168.21,2.1996]
[1717099281521,2.1987,168.28,168.22,2.1994]
[1717099281909,2.1988,168.27,168.21,2.1995]
[1717099282406,2.1989,168.26,168.16,66.6122]
[1717099282607,4.3969,168.3,168.16,66.6122]
[1717099282812,22.0175,168.37,168.17,2.2]
[1717099282813,2.1993,168.23,168.17,2.2]
[1717099283209,22.0175,168.37,168.14,60.0]
[1717099283406,2.1994,168.23,168.17,2.2001]
[1717099284314,2.1992,168.24,168.17,2.2001]
[1717099284507,2.1993,168.23,168.16,2.2002]
[1717099285422,2.1993,168.23,168.17,2.2001]
[1717099286127,8.37904821,168.24,168.18,2.2]
[1717099287109,2.1993,168.23,168.17,47.2001]
[1717099287626,2.1996,168.21,168.15,2.2003]
[1717099288305,2.1997,168.2,168.15,2.2003]
[1717099288617,2.1997,168.2,168.14,2.2005]
[1717099288814,2.1996,168.21,168.15,2.2003]
[1717099288998,10.57844821,168.24,168.16,2.2002]
[1717099288999,2.1995,168.22,168.16,2.2002]
[1717099289596,2.1996,168.21,168.16,2.2002]
[1717099290002,2.1996,168.21,168.16,47.2002]
[1717099290204,2.1995,168.22,168.16,47.2002]
[1717099290411,6.17984821,168.24,168.17,2.2001]
[1717099290746,2.1995,168.22,168.17,45.0]
[1717099290907,2.1996,168.21,168.17,45.0]
[1717099291307,8.5775,168.22,168.17,45.0]
[1717099291735,2.1996,168.21,168.17,45.0]
[1717099292114,2.1997,168.2,168.17,45.0]
[1717099292949,2.1996,168.21,168.17,45.0]
[1717099293439,2.1997,168.2,168.17,45.0]
[1717099293937,2.1996,168.21,168.17,45.0]
[1717099294107,10.57844821,168.24,168.11,4.4017]
[1717099294108,6.3017,168.19,168.11,4.4017]
[1717099294318,6.3017,168.19,168.1,22.0019]
[1717099294514,8.5016,168.19,168.13,2.2005]
[1717099294924,2.2,168.18,168.12,2.2007]
[1717099295318,2.2002,168.17,168.12,2.2007]
[1717099295518,2.2004,168.15,168.1,2.201]
[1717099295732,36.6288,168.2,168.1,2.201]
[1717099295733,4.4,168.18,168.1,2.201]
[1717099295934,6.16438458,168.15,168.08,2.2012]
[1717099296248,2.2007,168.13,168.07,2.2014]
[1717099296455,2.2011,168.1,168.05,23.8525]
[1717099296642,2.201,168.11,168.04,17.6]
[1717099296954,2.201,168.11,168.05,2.2016]
[1717099297120,2.201,168.11,168.03,0.3709048]
[1717099297121,2.201,168.11,168.06,2.2015]
[1717099297327,2.2008,168.12,168.06,2.2015]
[1717099298525,2.2008,168.12,168.07,2.2014]
[1717099298735,2.2007,168.13,168.07,2.2014]
[1717099299626,2.2007,168.13,168.08,2.2013]
[1717099300126,2.2006,168.14,168.08,60.0]
[1717099300331,2.2004,168.15,168.09,47.2011]
[1717099300546,2.2005,168.14,168.09,45.0]
[1717099300719,2.2004,168.15,168.09,47.2011]
[1717099300924,8.36476399,168.17,168.1,17.6]
[1717099301140,2.2001,168.17,168.11,47.2008]
[1717099301550,2.2005,168.15,168.12,45.0]
[1717099301751,6.3125,168.14,168.1,45.0]
[1717099301965,2.2007,168.13,168.07,2.2013]
[1717099302133,8.513,168.14,168.08,2.2012]
[1717099302330,8.513,168.14,168.05,4.4033]
[1717099302331,6.3125,168.14,168.09,2.2011]
[1717099302835,2.2004,168.15,168.05,22.0033]
[1717099302836,6.3381,168.15,168.05,17.6]
[1717099303041,2.2009,168.12,168.06,2.2015]
[1717099303233,6.3381,168.15,168.06,2.2015]
[1717099303643,2.2009,168.11,168.05,2.2016]
[1717099304028,2.2009,168.11,168.06,2.2015]
[1717099304236,8.539,168.11,168.06,2.2015]
[1717099304456,8.539,168.11,168.04,17.6]
[1717099304639,6.3381,168.11,168.06,2.2015]
[1717099305259,6.3381,168.11,168.07,2.2014]
[1717099305560,6.3381,168.11,168.06,2.2015]
[1717099306070,2.201,168.1,168.03,398.8709048]
[1717099306240,6.0197,168.12,168.04,45.0]
[1717099306441,2.201,168.1,168.04,2.2017]
[1717099307440,2.201,168.1,168.05,2.2016]
[1717099307640,2.2009,168.11,168.05,2.2016]
[1717099308476,6.0197,168.12,168.07,2.2014]
[1717099308631,2.2007,168.13,168.04,88.6088]
[1717099308839,4.4008,168.15,168.06,2.2015]
[1717099309754,2.2006,168.14,168.08,2.2012]
[1717099310258,2.2006,168.13,168.08,2.2012]
[1717099310466,2.2005,168.14,168.08,2.2012]
[1717099310758,6.61,168.16,168.08,77.6]
[1717099311066,8.8103,168.16,168.1,2.2009]
[1717099311264,2.2001,168.17,168.11,2.2008]
[1717099311436,2.2002,168.16,168.11,45.0]
[1717099311846,2.2004,168.15,168.11,45.0]
[1717099313732,2.2004,168.15,168.1,45.0]
[1717099314545,2.2004,168.15,168.1,47.201]
[1717099316667,2.2005,168.14,168.1,45.0]
[1717099316968,2.2004,168.15,168.1,45.0]
[1717099318170,2.2005,168.14,168.1,45.0]
[1717099318477,2.2006,168.14,168.1,45.0]
[1717099318767,8.7681,168.14,168.1,45.0]
[1717099319268,8.768,168.14,168.1,45.0]
[1717099319573,19.7679,168.18,168.1,47.201]
[1717099319753,2.2004,168.15,168.1,45.0]
[1717099319946,2.2005,168.14,168.1,45.0]
[1717099320747,2.2004,168.15,168.1,45.0]
[1717099320943,2.2008,168.12,168.1,45.0]
[1717099321257,10.7897,168.14,168.03,0.3709048]
[1717099321462,10.7897,168.14,168.05,2.2016]
[1717099321463,2.2011,168.1,168.05,2.2016]
[1717099322066,2.2011,168.1,168.04,2.2017]
[1717099322770,2.2012,168.09,168.03,2.5728048]
[1717099322984,2.2012,168.09,168.04,2.2018]
[1717099323269,2.2012,168.09,168.04,47.2018]
[1717099323677,2.2012,168.09,168.04,2.2018]
[1717099323849,2.2011,168.1,168.04,2.2018]
[1717099324047,6.3885,168.14,168.03,2.5728048]
[1717099324269,6.603,168.11,168.03,0.3709048]
[1717099324486,6.1209,168.06,168.03,0.3709048]
[1717099324686,6.1209,168.05,168.03,0.3709048]
[1717099325364,8.6697,168.04,168.03,0.3709048]
[1717099326660,24.1079,168.04,168.03,0.3709048]
[1717099328007,8.6697,168.04,168.03,0.3709048]
[1717099328159,13.0734,168.04,168.03,0.3709048]
[1717099331159,2.2018,168.04,168.03,0.3709048]
[1717099331560,8.8347,168.04,168.03,0.3709048]
[1717099331775,29.1364,168.04,168.03,0.3709048]
[1717099331972,2.2022,168.01,168.0,0.7907743]
[1717099332186,13.2395,168.01,168.0,0.7907743]
[1717099332394,29.1375,168.01,168.0,0.7907743]
[1717099332572,35.7442,168.01,168.0,0.7907743]
[1717099333191,44.5531,168.01,168.0,0.7907743]
[1717099334790,50.72318378,168.01,168.0,0.7907743]
[1717099339088,34.82518378,168.01,168.0,0.7907743]
[1717099339312,28.19228378,168.01,168.0,0.7907743]
[1717099339482,6.17008378,168.01,168.0,0.7907743]
[1717099339687,8.8061,168.07,168.0,0.7907743]
[1717099339887,2.2019,168.04,168.0,0.7907743]
[1717099340089,8.37022423,168.04,168.0,0.7907743]
[1717099340314,6.16832423,168.04,168.0,7.2400743]
[1717099340477,6.16832423,168.04,168.0,0.7907743]
[1717099340678,2.202,168.03,168.0,0.7907743]
[1717099340883,8.37012423,168.04,168.0,0.7907743]
[1717099341083,2.202,168.03,168.0,0.7907743]
[1717099341507,6.16832423,168.04,168.0,0.7907743]
[1717099342012,2.2022,168.01,168.0,0.7907743]
[1717099342519,8.7726,168.01,168.0,0.7907743]
[1717099342698,13.177,168.01,168.0,0.7907743]
[1717099343311,13.2133,168.01,168.0,0.7907743]
[1717099343512,6.6066,168.01,168.0,0.7907743]
[1717099343682,13.208,168.01,168.0,0.7907743]
[1717099344601,44.0256,168.01,168.0,0.7907743]
[1717099348026,22.0034,168.01,167.85,1.0]
[1717099348222,8.8126,167.94,167.85,1.0]
[1717099348515,8.8126,167.94,167.85,3.2043]
[1717099348516,2.2037,167.9,167.85,3.2043]
[1717099348688,2.2036,167.91,167.85,3.2043]
[1717099349220,2.2036,167.9,167.85,1.0]
[1717099350205,2.204,167.88,167.85,1.0]
[1717099350400,2.2042,167.86,167.85,1.0]
[1717099350790,25.4616,167.86,167.85,1.0]
[1717099351288,29.87,167.86,167.85,1.0]
[1717099351813,8.8511,167.81,167.8,0.26847365]
[1717099352609,25.4622,167.81,167.8,0.26847365]
[1717099353724,25.4622,167.81,167.8,0.20020487]
[1717099355412,8.8511,167.81,167.8,0.20020487]
[1717099355609,38.8511,167.81,167.8,0.20020487]
[1717099355809,25.4622,167.81,167.8,0.20020487]
[1717099356518,2.2048,167.81,167.8,0.20020487]
[1717099357021,25.4622,167.81,167.8,0.20020487]
[1717099359129,25.4622,167.81,167.69,0.3709048]
[1717099359130,2.2062,167.71,167.69,0.3709048]
[1717099359308,4.4106,167.78,167.66,0.7907743]
[1717099359309,23.2574,167.7,167.66,0.7907743]
[1717099359496,23.2574,167.7,167.59,2.24481064]
[1717099359497,1.0254674,167.63,167.59,0.03711064]
[1717099359695,3.2327674,167.63,167.59,0.03711064]
[1717099360126,1.0254674,167.63,167.59,0.03711064]
[1717099360317,1.0254674,167.63,167.6,21.8899]
[1717099360501,1.0254674,167.63,167.61,6.0158]
[1717099361502,1.0254674,167.63,167.59,21.92701064]
[1717099362241,1.0254674,167.63,167.6,6.244]
[1717099362533,6.15701514,167.66,167.63,22.265]
[1717099362830,4.86612753,167.77,167.66,16.021]
[1717099362831,6.157015,167.77,167.66,16.021]
[1717099363053,6.157015,167.77,167.67,45.0]
[1717099363054,8.36114075,167.73,167.67,45.0]
[1717099363247,6.157015,167.77,167.61,15.3297]
[1717099363248,2.2062,167.71,167.61,15.3297]
[1717099363529,2.2062,167.71,167.62,45.0]
[1717099363735,6.15588138,167.72,167.62,45.0]
[1717099363736,8.36188138,167.72,167.62,45.0]
[1717099364026,8.36198138,167.72,167.62,45.0]
[1717099364227,6.15588138,167.72,167.63,2.2072]
[1717099364639,6.15588138,167.72,167.61,15.3297]
[1717099364933,6.15588138,167.72,167.6,6.6341]
[1717099365435,2.2066,167.68,167.6,6.6341]
[1717099365807,6.15588138,167.72,167.6,6.6341]
[1717099366437,2.2063,167.71,167.62,60.0]
[1717099366614,6.15588138,167.72,167.65,60.0]
[1717099366809,6.157015,167.77,167.64,2.207]
[1717099367017,6.157015,167.77,167.64,45.0]
[1717099367018,6.14113188,167.73,167.64,45.0]
[1717099367425,6.14113188,167.73,167.6,6.6341]
[1717099367426,4.4115,167.74,167.6,6.6341]
[1717099367631,2.2064,167.69,167.61,45.0]
[1717099368416,2.2063,167.71,167.61,47.2074]
[1717099368618,6.14290634,167.72,167.6,6.6341]
[1717099368918,6.14290634,167.72,167.61,2.2074]
[1717099369117,6.14290634,167.72,167.62,2.2073]
[1717099369327,2.2062,167.71,167.62,19.8073]
[1717099369530,6.14290634,167.72,167.64,19.807]
[1717099369833,6.14290634,167.72,167.64,2.207]
[1717099370035,8.34890634,167.72,167.63,2.2072]
[1717099370340,2.2062,167.71,167.63,45.0]
[1717099370563,8.34890634,167.72,167.63,47.2072]
[1717099371118,6.14290634,167.72,167.64,2.207]
[1717099371428,6.14290634,167.72,167.66,2.2068]
[1717099371636,6.14290634,167.72,167.65,45.0]
[1717099371841,6.14290634,167.72,167.65,62.6]
[1717099372044,6.14290634,167.72,167.65,64.8069]
[1717099372248,6.14290634,167.72,167.65,45.0]
[1717099372446,8.34890634,167.72,167.65,45.0]
[1717099372746,6.14290634,167.72,167.65,45.0]
[1717099372935,6.14290634,167.72,167.66,2.2068]
[1717099373323,6.14290634,167.72,167.66,45.0]
[1717099375430,8.34890634,167.72,167.66,45.0]
[1717099376318,6.14290634,167.72,167.66,45.0]
[1717099377625,6.14290634,167.72,167.67,17.6]
[1717099377826,6.14290634,167.72,167.68,45.0]
[1717099378037,6.14290634,167.72,167.7,6.5778]
[1717099378251,6.14290634,167.72,167.71,45.0]
[1717099378434,2.2054,167.77,167.71,51.5778]
[1717099378752,6.13169666,167.76,167.71,51.5778]
[1717099378947,8.33719666,167.76,167.71,51.5778]
[1717099379529,2.2056,167.75,167.71,45.0]
[1717099379853,6.13169666,167.76,167.71,45.0]
[1717099380055,2.2062,167.71,167.63,2.2071]
[1717099380427,6.3025,167.75,167.63,2.2071]
[1717099380428,2.206,167.73,167.65,60.0]
[1717099380741,6.3025,167.75,167.62,6.5778]
[1717099380926,12.9198,167.75,167.62,6.5778]
[1717099381128,2.2068,167.67,167.59,0.03711064]
[1717099381337,2.2068,167.67,167.59,2.24481064]
[1717099381547,2.2068,167.67,167.59,17.63711064]
[1717099381943,2.2068,167.66,167.59,0.03711064]
[1717099382130,4.4123,167.71,167.59,0.03711064]
[1717099382131,2.2069,167.65,167.59,0.03711064]
[1717099382328,2.2071,167.64,167.59,0.03711064]
[1717099382555,15.7486,167.74,167.59,0.03711064]
[1717099382753,2.2076,167.6,167.59,0.03711064]
[1717099383757,2.2075,167.61,167.59,0.03711064]
[1717099383937,4.4142,167.65,167.59,0.03711064]
[1717099384266,2.2076,167.6,167.59,0.03711064]
[1717099385257,8.5655,167.6,167.59,0.03711064]
[1717099386344,2.2076,167.6,167.59,0.03711064]
[1717099387857,8.5995,167.6,167.59,0.03711064]
[1717099388665,28.4518,167.6,167.59,0.03711064]
[1717099389043,50.03797594,167.6,167.59,0.03711064]
[1717099389246,50.03797594,167.6,167.59,1.064e-05]
[1717099390461,95.03797594,167.6,167.59,1.064e-05]
[1717099390655,2.2088,167.51,167.5,35.7907743]
[1717099391159,8.8329,167.56,167.5,35.7907743]
[1717099391332,2.2088,167.51,167.5,35.7907743]
[1717099393659,4.4161,167.57,167.5,35.7907743]
[1717099393839,2.208,167.57,167.5,35.7907743]
[1717099394039,2.208,167.57,167.5,37.9996743]
[1717099394355,6.13277594,167.6,167.5,37.9996743]
[1717099394356,2.2079,167.58,167.5,44.3364743]
[1717099394740,2.2079,167.58,167.51,2.2087]